Cogmind - Beta 9.1 @@@ ROGUE MODE // 2019.11.09 @ 15:52:51 Player: Rilt Result: Destroyed by as-24980 with Assembled Rifle Performance ------------- Evolutions (1) 500 Regions Visited (3) 600 Robots Destroyed (16) 80 Value Destroyed (318) 318 Prototype IDs (4) 80 Alien Tech Used (0) 0 Bonus (0) 0 TOTAL SCORE: 1578 Bonus ------- None Cogmind --------- Core Integrity 0/400 Matter 42/300 Energy 28/100 System Corruption 0% Temperature Cool (0) Location -9/Mines Parts ------- Power (1) Propulsion (2) Utility (3) Large Storage Unit Weapon (3) Inventory (10) Ion Engine Improved Treads Improved Treads Heat Sink Large Storage Unit Light Assault Rifle Heavy Assault Rifle Peak State ------------ Power Ion Engine Propulsion Improved Treads Improved Treads Utility Heat Sink Large Storage Unit Shield Generator Weapon Heavy Assault Rifle Heavy Assault Rifle Heavy Assault Rifle Inventory Ion Engine Ion Engine Improved Treads Improved Treads Heat Sink Large Storage Unit Light Assault Rifle Heavy Assault Rifle [Rating: 16] Favorites ----------- Power Ion Engine Engine Ion Engine Propulsion Improved Treads Treads Improved Treads Wheel Wheel Utility Large Storage Unit Device Shield Generator Storage Large Storage Unit Weapon Heavy Assault Rifle Energy Gun Medium Laser Ballistic Gun Heavy Assault Rifle Build | -11 -10 -9 -9 ------- Run | Scr Mat Mat Min Slots Evolved 2 | . . 2 . Power . | . . . . Propulsion . | . . . . Utility 1 | . . 1 . Weapon 1 | . . 1 . Parts Attached 18 | 5 7 5 1 Power 3 | 1 1 . 1 Engine 3 | 1 1 . 1 Core . | . . . . Reactor . | . . . . Propulsion 4 | 2 2 . . Treads 2 | . 2 . . Leg . | . . . . Wheel 2 | 2 . . . Hover . | . . . . Flight . | . . . . Utility 3 | . 2 1 . Device 2 | . 1 1 . Storage 1 | . 1 . . Processor . | . . . . Hackware . | . . . . Protection . | . . . . Artifact . | . . . . Weapon 8 | 2 2 4 . Energy Gun 1 | . 1 . . Energy Cannon . | . . . . Ballistic Gun 7 | 2 1 4 . Ballistic Cannon . | . . . . Launcher . | . . . . Special Weapon . | . . . . Impact Weapon . | . . . . Slashing Weapon . | . . . . Piercing Weapon . | . . . . Special Melee Weapon . | . . . . Unidentified Prototypes . | . . . . Parts Lost 13 | . 4 . 9 Power 3 | . 1 . 2 Propulsion 3 | . 1 . 2 Utility 2 | . . . 2 Weapon 5 | . 2 . 3 Highest Loss Streak 9 | . 2 . 9 Average Slot Usage (%) 93 | . 92 96 93 Engine 11 | . 12 11 8 Treads 20 | . 19 22 19 Wheel 4 | . 7 . . Device 12 | . 9 19 22 Storage 12 | . 13 11 11 Ballistic Gun 29 | . 27 33 30 Naked Turns . | . . . . Heaviest Build 33 | 6 26 33 33 Greatest Support 46 | 20 46 46 46 Greatest Overweight (x) 6 | . 2 . 6 Average Overweight (x) . | . . . . Largest Inventory Capacity 10 | 4 10 10 10 Average Capacity 9 | 4 9 10 10 Most Carried 9 | 3 6 9 8 Average Carried 4 | 1 4 7 7 Final Capacity 10 | 4 10 10 10 Final Carried 8 | 1 6 8 7 Class Distribution -------------------- 71% | Mutant 28% | Tank Dominant Class ---------------- Mutant | -10/Materials Tank | -9/Materials Tank | -9/Mines Resources | -11 -10 -9 -9 ----------- Run | Scr Mat Mat Min Matter Collected 614 | 258 356 . . Remotely . | . . . . Salvage Created 469 | 42 390 37 . Parts 33 | 1 29 3 . Haulers Intercepted . | . . . . Recyclers Shooed . | . . . . Parts Field Recycled . | . . . . Retrieved Matter . | . . . . Parts Self-Destructed . | . . . . Prevented . | . . . . Kills | -11 -10 -9 -9 ------- Run | Scr Mat Mat Min Combat Hostiles Destroyed 12 | 1 10 1 . Guns 12 | 1 10 1 . Classes Destroyed 5 | 1 4 . . Recycler 1 | . 1 . . Operator 1 | . 1 . . Watcher 2 | . 2 . . Swarmer 6 | . 6 . . Grunt 6 | 1 4 1 . Best Kill Streak 5 | 1 5 1 . Combat Bots Only 3 | 1 3 1 . Max Kills in Single Turn 2 | 1 2 1 . Gunslinging 1 | . 1 . . Exploded . | . . . . Melee . | . . . . Uniques/NPCs Destroyed . | . . . . Combat | -11 -10 -9 -9 -------- Run | Scr Mat Mat Min Damage Taken 1877 | 22 577 539 739 Core 517 | 22 93 60 342 Absorbed by Shields 310 | . 62 195 53 Core Remaining (%) 72 | 91 54 . . Volleys Fired 109 | 2 80 27 . Largest 3 | 2 2 3 . Hottest 70 | 40 70 69 . Shots Fired 242 | 4 157 81 . Gun 242 | 4 157 81 . Cannon . | . . . . Launcher . | . . . . Special . | . . . . Kinetic 231 | 4 146 81 . Thermal 11 | . 11 . . Explosive . | . . . . Electromagnetic . | . . . . Robot Hit Streak 13 | 3 13 13 . Robot Miss Streak 10 | . 10 2 . Penetration Max . | . . . . Secondary Targets 2 | . 2 . . Max Gunslinging Chain 1 | . 1 . . Shots Hit Robots 152 | 3 82 67 . Core Hits 25 | 2 22 1 . Critical Hits . | . . . . Critical Kills . | . . . . Critical Parts Destroyed . | . . . . Melee Attacks . | . . . . Impact . | . . . . Slashing . | . . . . Piercing . | . . . . Sneak Attacks . | . . . . Combat Hostiles . | . . . . Follow-up Attacks . | . . . . Damage Inflicted 532 | 29 459 44 . Guns 532 | 29 459 44 . Cannons . | . . . . Explosions . | . . . . Melee . | . . . . Ramming . | . . . . Kinetic 519 | 29 446 44 . Thermal 13 | . 13 . . Explosive . | . . . . Electromagnetic . | . . . . Impact . | . . . . Slashing . | . . . . Piercing . | . . . . Highest Corruption 1 | . 1 . . Average Corruption 1 | . 1 . . Corruption Purged . | . . . . Overload Shots . | . . . . Overflow Damage . | . . . . Projectiles . | . . . . Explosions . | . . . . Melee . | . . . . Knockbacks . | . . . . Impact . | . . . . Kinetic . | . . . . Secondary . | . . . . Self-Inflicted Damage . | . . . . Shots . | . . . . Rammed . | . . . . Targets Rammed . | . . . . Kicked . | . . . . Crushed . | . . . . Highest Temperature 81 | 6 81 . . Average Temperature 28 | 6 29 . . Received Heat Transfer 278 | 12 88 164 14 Siege Activations . | . . . . Robots Corrupted . | . . . . Combat Hostiles . | . . . . Parts Fried . | . . . . Impact Corruptions . | . . . . Robots Melted . | . . . . Combat Hostiles . | . . . . Parts Melted . | . . . . Heat Transferred 37 | . 37 . . Parts Sabotaged . | . . . . Parts Stolen . | . . . . Parts Stripped . | . . . . Power Chain Reactions . | . . . . Missiles Intercepted . | . . . . Alert | -11 -10 -9 -9 ------- Run | Scr Mat Mat Min Peak Influence 232 | 20 232 50 19 Average Influence 46 | 15 64 31 15 Maximum Alert Level 1 | . 1 . . Low Security (%) 98 | . . . . Level 1 1 | . . . . Level 2 . | . . . . Level 3 . | . . . . Level 4 . | . . . . Level 5 . | . . . . High Security . | . . . . Max Security . | . . . . Squads Dispatched 2 | . 1 1 . Investigation . | . . . . Extermination . | . . . . Reinforcement 2 | . 1 1 . Assault . | . . . . Garrison . | . . . . Intercept . | . . . . Construction Impeded . | . . . . Haulers Reinforced . | . . . . Stealth | -11 -10 -9 -9 --------- Run | Scr Mat Mat Min Distress Signals . | . . . . Communications Jammed . | . . . . Distress Signals . | . . . . Times Spotted 34 | 1 15 3 15 Peak Tracking Total 15 | 1 5 1 15 Tactical Retreats 1 | . 1 . . Traps | -11 -10 -9 -9 ------- Run | Scr Mat Mat Min Traps Triggered 1 | . 1 . . Indirectly . | . . . . Trap Hack Attempts . | . . . . Triggered . | . . . . Disarmed . | . . . . Reprogrammed . | . . . . Reused . | . . . . Traps Extracted . | . . . . Installed . | . . . . Triggered . | . . . . Machines | -11 -10 -9 -9 ---------- Run | Scr Mat Mat Min Machines Disabled . | . . . . Max in Single Turn . | . . . . Machines Sabotaged . | . . . . Garrisons Compromised . | . . . . Overloaded Fab Kills . | . . . . Fab Network Shutdowns . | . . . . Hacking | -11 -10 -9 -9 --------- Run | Scr Mat Mat Min Machines Accessed 5 | . 3 2 . Terminals 4 | . 2 2 . Fabricators . | . . . . Repair Stations . | . . . . Recycling Units 1 | . 1 . . Scanalyzers . | . . . . Garrison Access . | . . . . Total Hacks 13 | . 10 3 . Successful 11 | . 9 2 . Failed 2 | . 1 1 . Catastrophic . | . . . . Database Lockouts . | . . . . Manual . | . . . . Terminals 10 | . 7 3 . Fabricators . | . . . . Repair Stations . | . . . . Recycling Units 3 | . 3 . . Scanalyzers . | . . . . Garrison Access . | . . . . Terminal Hacks 8 | . 6 2 . Record 5 | . 5 . . Prototype ID Bank 2 | . . 2 . Hauler Manifests 1 | . 1 . . Fabricator Hacks . | . . . . Repair Station Hacks . | . . . . Recycling Unit Hacks 3 | . 3 . . Process 1 | . 1 . . Report Inventory 2 | . 2 . . Scanalyzer . | . . . . Garrison Access Hacks . | . . . . Unauthorized Hacks . | . . . . Terminals . | . . . . Fabricators . | . . . . Repair Stations . | . . . . Recycling Units . | . . . . Scanalyzers . | . . . . Garrison Access . | . . . . Data Cores Recovered 1 | . 1 . . Used . | . . . . Hacking Detections 4 | . 3 1 . Full Trace Events . | . . . . Feedback Events . | . . . . Feedback Blocked . | . . . . Robot Schematics Acquired . | . . . . Robots Built . | . . . . Matter . | . . . . Time . | . . . . Total Robot Build Rating . | . . . . Part Schematics Acquired . | . . . . Parts Built . | . . . . Matter . | . . . . Time . | . . . . Total Part Build Rating . | . . . . Parts Repaired . | . . . . Time . | . . . . Parts Recycled . | . . . . Recycled Matter 87 | . 87 . . Retrieved Matter . | . . . . Retrieved Components . | . . . . Parts Scanalyzed . | . . . . Part Schematics Acquired . | . . . . Parts Damaged . | . . . . Bothacking | -11 -10 -9 -9 ------------ Run | Scr Mat Mat Min Used RIF Installer . | . . . . Robots Hacked . | . . . . Non-combat . | . . . . Combat . | . . . . Robot Hacks Applied . | . . . . Relay Couplers Released . | . . . . Robots Rewired . | . . . . Allies Hacked . | . . . . Hacks Repelled . | . . . . Allies | -11 -10 -9 -9 -------- Run | Scr Mat Mat Min Total Allies . | . . . . Largest Group . | . . . . Highest-Rated Group . | . . . . Highest-Rated Ally . | . . . . Total Orders . | . . . . Ally Attacks . | . . . . Total Damage . | . . . . Kills . | . . . . Allies Corrupted . | . . . . Allies Melted . | . . . . Intel | -11 -10 -9 -9 ------- Run | Scr Mat Mat Min Robot Analysis Total . | . . . . Derelict Logs Recovered . | . . . . Drone Launches . | . . . . Drone Recoveries . | . . . . Exploration | -11 -10 -9 -9 ------------- Run | Scr Mat Mat Min Turns Passed 1468 | 236 810 366 56 Spaces Moved 710 | 159 354 166 31 Core 20 | 19 . . 1 Treads 485 | . 289 166 30 Legs . | . . . . Wheels 205 | 140 65 . . Hover . | . . . . Flight . | . . . . Fastest Speed 50 | 50 80 160 160 Average Speed 135 | 76 146 160 166 Slowest Speed 350 | 80 160 160 350 Overloaded Moves . | . . . . Propulsion Burnouts . | . . . . Robots Hopped . | . . . . Cave-ins Triggered . | . . . . Exploration Rate (%) 19 | 11 35 16 16 Regions Visited 3 Branch Regions 1 Pre-discovered Areas . | . . . . Known Exits Taken . | . . . . Unknown Exits Taken 3 | 1 1 1 . Scrap Searched . | . . . . Spaces Dug . | . . . . Terrain Destroyed . | . . . . Melee . | . . . . Projectile . | . . . . AOE . | . . . . Actions | -11 -10 -9 -9 --------- Run | Scr Mat Mat Min Total 1011 | 269 501 205 36 Wait 150 | 98 48 . 4 Move 707 | 158 353 165 31 Hop . | . . . . Pick Up 24 | 6 12 6 . Fast Attach . | . . . . Attach 15 | 5 7 2 1 Detach . | . . . . Swap 3 | . . 3 . Drop 3 | . 1 2 . Fire 109 | 2 80 27 . Melee . | . . . . Ram . | . . . . Kick . | . . . . Crush . | . . . . Escape Stasis . | . . . . Rewire . | . . . . Trap . | . . . . Miscellaneous . | . . . . Route ------- -11/Scrapyard -10/Materials -9/Materials -9/Mines History --------- Turn | Location | Event 2 | -11/Scrapyard | Met Revision 17 50 | -11/Scrapyard | Discovered new exit (range 8) 237 | -11/Scrapyard | Entered Materials 302 | -10/Materials | Build established: Mutant 693 | -10/Materials | Discovered new exit (range 15) 1047 | -10/Materials | Entered another Materials area 1047 | -9/Materials | Evolved 2 slots: Utility x1, Weapon x1 1319 | -9/Materials | Discovered new exit (range 7) 1340 | -9/Materials | Build established: Tank 1413 | -9/Materials | Entered Mines 1422 | -9/Mines | Assembled infested the area 1466 | -9/Mines | Core integrity fell below 50% 1469 | -9/Mines | Core integrity fell below 20% 1469 | -9/Mines | Destroyed by as-24980 with Assembled Rifle Last Messages --------------- The unstable cave ceiling collapses. Imp. Treads destroyed. Hvy. Assault Rifle destroyed. as-09698 destroyed. as-76753 destroyed. as-20834 destroyed. as-70334 destroyed. as-95196 destroyed. Ion Engine destroyed. Hvy. Assault Rifle destroyed. Shield Generator destroyed. Imp. Treads destroyed. as-25078 destroyed. Heat Sink destroyed. as-45091 destroyed. as-17090 destroyed. Hvy. Assault Rifle destroyed. The unstable cave ceiling collapses. Ion Engine destroyed. [Achievement: 5k Club] Map ----- +----------------------------------------------------+ | | | | | ?????????????????????????????????????????????????? | | ?????????????????????????????????????????????????? | | ?????????????????????????????????????????????????? | | ?????????????????????????????????????????????????? | | ?????????????????????????????????????????????????? | | ?????????????????????????????????????????????????? | | ?????????????????????????????????????????????????? | | ?????????????????????????????????????????????????? | | ?????????????????????????????????????????????????? | | ????????????????????????????? ???????????????????? | | ???????????????????????????? ????????????????? | | ???????????????????????????? #????????????????? | | ???????????????????????????? #????????????????? | | ???????????????????????????#a ###??????????????? | | ??????????????????????????# a =% ##?????????????? | | ????????????????????????##%= a ! ??????????????? | | ????????????????????????# * ???????????????? | | ????????????????????????# a % ????????????????? | | ???????????????????????## #?????????????????? | | ????????????????????#### #??????????????????? | | ???????????????????## #??????????????????? | | ??????????????????## ##??????????????????? | | ??????????????????# #??????????????????? | | ?????????????????## @ #??????????????????? | | ?????????????????# #??????????????????? | | ?????????????????# #??????????????????? | | ?????????????????## #??????????????????? | | ??????????????????# #??????????????????? | | ??????????????????## ###??????????????????? | | ??????????????????# # ####????????????????????? | | ??????????????????# #???????????????????????? | | ??????????????????##dd####???????????????????????? | | ??????????????????# #??????????????????????????? | | ??????????????????# #??????????????????????????? | | ??????????????????# ##??????????????????????????? | | ??????????????????# #???????????????????????????? | | ??????????????????# #???????????????????????????? | | ??????????????????# #???????????????????????????? | | ??????????????????# "#???????????????????????????? | | ??????????????????#"%#???????????????????????????? | | ??????????????????# "#???????????????????????????? | | ?????????????????## #???????????????????????????? | | ????????????????## #???????????????????????????? | | ????????????????# #???????????????????????????? | | ????????????????# #???????????????????????????? | | ????????????????# #???????????????????????????? | | ????????????????# #???????????????????????????? | | ???????????????## ##??????????????????????????? | +----------------------------------------------------+ Best States ------------- Heat Dissipation 38 Energy Generation 10 Energy Capacity 250 Matter Stores 300 Matter Capacity 300 Sight Range 16 Terrain Scan Density 10 Evasion (%) 50 Recoil Reduction 2 Item Schematics ----------------- None Robot Schematics ------------------ None Fabricated ------------ Nothing Alien Tech Used ----------------- None Achievements -------------- 5k Club Oops Shopping List Challenges ------------ None Game ------ Seed FluxMassBlaster Manual? 0 Play Time 00:17:35 Cumulative 3.2 hours Start 2019.11.09 @ 15:36:19 End 2019.11.09 @ 15:52:51 Sessions 1 Manual Loads 0 Difficulty Rogue Special Mode None Game No. 3 Rogue 3 Adventurer 0 Explorer 0 Win Type - Total 0 Types 0/0/0/0/0/0/0 Lore% 11 Gallery% 8 Achievement% 8 Wizard Run 0 Options --------- ASCII 0 Keyboard 0 Movement Mouse Keybinds 0 Fullscreen 1 Font 20/SmallcapsGlow Map View 66x50 Tactical HUD 0 Map Filters NONE Filters NONE Steam 1 RUN: 35cc7096-b2b6-477c-9fb9-5ba62ea21eb3